Cogmind - Beta 16.1 @@@ ROGUE MODE // 2026.03.28 @ 08:05:58 Player: ash Result: Destroyed by G-34 Mercenary with Small Laser Performance ------------- Evolutions (0) 0 Regions Visited (2) 400 Robots Destroyed (20) 100 Value Destroyed (463) 463 Prototype IDs (0) 0 Alien Tech Used (0) 0 Bonus (0) 0 TOTAL SCORE: 963 Bonus ------- None Cogmind --------- Core Integrity 0/250 Matter 299/300 Energy 123/125 System Corruption 0% Temperature Cool (7) Movement Walking (190) Ox1 Location -10/Mines Parts ------- > --- POWER (1) -------- Light Ion Engine > --- PROPULSION (2) --- Aluminum Leg Aluminum Leg > --- UTILITY (2) ------ Improved Heat Sink Large Storage Unit > --- WEAPON (2) ------- Medium Laser Light Assault Rifle > --- INVENTORY (15) --- Aluminum Leg Aluminum Leg Wheel Small Storage Unit Particle Gun Light Cannon Grenade Launcher Peak State ------------ > --- POWER ------------ Light Ion Engine > --- PROPULSION ------- Aluminum Leg Aluminum Leg > --- UTILITY ---------- Improved Heat Sink Large Storage Unit > --- WEAPON ----------- Medium Laser Light Assault Rifle > --- INVENTORY -------- Aluminum Leg Wheel Small Storage Unit Particle Gun Light Cannon Grenade Launcher [Rating: 9] Favorites ----------- Power Light Ion Engine Engine Light Ion Engine Power Core Light Nuclear Core Propulsion Aluminum Leg Leg Aluminum Leg Utility Small Storage Unit Device Improved Heat Sink Storage Small Storage Unit Processor Targeting Computer Protection Light Armor Plating Weapon Light Assault Rifle Energy Gun Medium Laser Ballistic Gun Light Assault Rifle Launcher Grenade Launcher Build | -11 -10 -10 ------- Run | Yrd Mat Min Slots Evolved . | . . . Power . | . . . Propulsion . | . . . Utility . | . . . Weapon . | . . . Parts Attached 19 | . 14 5 Power 3 | . 3 . Engine 2 | . 2 . Core 1 | . 1 . Reactor . | . . . Propulsion 7 | . 5 2 Treads . | . . . Leg 7 | . 5 2 Wheel . | . . . Hover . | . . . Flight . | . . . Utility 4 | . 3 1 Device 1 | . . 1 Storage 1 | . 1 . Processor 1 | . 1 . Hackware . | . . . Protection 1 | . 1 . Artifact . | . . . Weapon 5 | . 3 2 Energy Gun 2 | . 2 . Energy Cannon . | . . . Ballistic Gun 2 | . 1 1 Ballistic Cannon . | . . . Launcher 1 | . . 1 Special Weapon . | . . . Impact Weapon . | . . . Slashing Weapon . | . . . Piercing Weapon . | . . . Special Melee Weapon . | . . . Unidentified Prototypes . | . . . Parts Lost 5 | . 3 2 Power 1 | . 1 . Propulsion 2 | . 1 1 Utility 1 | . . 1 Weapon 1 | . 1 . Highest Loss Streak 2 | . 2 1 To Critical Strikes . | . . . Average Backups 6 | . 7 6 Power . | . . . Propulsion 3 | . 3 2 Utility . | . . 1 Weapon 2 | . 2 3 Tool/Special . | . . . Unused Backups 14 | . 10 4 Power 1 | . 1 . Propulsion 8 | . 6 2 Utility 2 | . 1 1 Weapon 3 | . 2 1 Tool/Special . | . . . Average Slot Usage (%) 95 | . 94 99 Engine 12 | . 11 14 Core 1 | . 2 . Leg 28 | . 28 28 Device 1 | . . 4 Storage 14 | . 14 14 Processor 5 | . 7 . Protection 3 | . 1 8 Energy Gun 9 | . 6 17 Ballistic Gun 18 | . 21 10 Peak Build Rating 9 | . 8 9 Average Rating 7 | . 7 7 On Entrance 6 | 6 6 8 Avg Prop Armor Cover (%) . | . . . Naked Turns . | . . . Heaviest Build 31 | 10 31 31 Greatest Support 20 | 20 20 20 Greatest Overweight (x) 1 | . 1 1 Average Overweight (x) . | . . 1 Largest Inventory Capacity 15 | . 15 15 Average Capacity 10 | . 8 15 Most Carried 8 | . 8 7 Average Carried 6 | . 7 6 Final Capacity 15 | 8 15 15 Final Carried 7 | 6 6 7 Class Distribution -------------------- 88% | Mutant 11% | Scavenger-Mutant Dominant Class ---------------- Mutant | -10/Materials Mutant | -10/Mines Resources | -11 -10 -10 ----------- Run | Yrd Mat Min Matter Collected 504 | 200 230 74 Remotely . | . . . Salvage Created 627 | . 517 110 Parts 34 | . 25 9 Haulers Intercepted 2 | . 2 . Recyclers Shooed 1 | . 1 . Parts Field Recycled . | . . . Retrieved Matter . | . . . Parts Self-Destructed . | . . . Prevented . | . . . Parts Restored . | . . . Kills | -11 -10 -10 ------- Run | Yrd Mat Min Combat Hostiles Destroyed 18 | . 12 6 Guns 15 | . 12 3 AOE 3 | . . 3 Classes Destroyed 3 | . 3 . Hauler 2 | . 2 . Swarmer 8 | . 3 5 Grunt 10 | . 9 1 Best Kill Streak 3 | . 3 3 Combat Bots Only 3 | . 3 3 Max Kills in Single Turn 3 | . 1 3 Gunslinging . | . . . Exploded 3 | . . 3 Melee . | . . . Uniques/NPCs Destroyed . | . . . Combat | -11 -10 -10 -------- Run | Yrd Mat Min Hostile Shots Fired 138 | . 110 28 Missed 33 | . 25 8 Hits 105 | . 85 20 Projectile 105 | . 85 20 Critical Strikes 1 | . . 1 Damage Taken 1226 | . 986 240 Core 257 | . 213 44 Absorbed by Shields . | . . . Core Remaining (%) 100 | 100 . . Volleys Fired 87 | . 72 15 Largest 2 | . 2 2 Hottest 115 | . 115 70 Shots Fired 173 | . 144 29 Gun 172 | . 144 28 Cannon . | . . . Launcher 1 | . . 1 Special . | . . . Kinetic 124 | . 110 14 Thermal 48 | . 34 14 Explosive 1 | . . 1 Electromagnetic . | . . . Robot Hit Streak 8 | . 8 5 Robot Miss Streak 4 | . 4 2 Penetration Max . | . . . Secondary Targets 1 | . 1 . Max Gunslinging Chain 1 | . 1 . Shots Hit Robots 110 | . 90 20 Core Hits 39 | . 30 9 Critical Kills . | . . . Critical Parts Destroyed . | . . . Critical Strikes 6 | . 4 2 Burn 6 | . 4 2 Melee Attacks . | . . . Impact . | . . . Slashing . | . . . Piercing . | . . . Sneak Attacks . | . . . Combat Hostiles . | . . . Follow-up Attacks . | . . . Damage Inflicted 1191 | . 900 291 Guns 1088 | . 900 188 Cannons . | . . . Explosions 101 | . . 101 Melee . | . . . Ramming 2 | . . 2 Kinetic 671 | . 570 101 Thermal 417 | . 330 87 Explosive 101 | . . 101 Electromagnetic . | . . . Impact . | . . . Slashing . | . . . Piercing . | . . . Highest Corruption . | . . . Average Corruption . | . . . Corruption Purged . | . . . Corruption Blocked . | . . . Overload Shots . | . . . Overflow Damage . | . . . Projectiles . | . . . Explosions . | . . . Melee . | . . . Knockbacks . | . . . Impact . | . . . Kinetic . | . . . Secondary . | . . . Self-Inflicted Damage 40 | . . 40 Shots 1 | . . 1 Rammed . | . . . Targets Rammed 1 | . . 1 Kicked 1 | . . 1 Crushed . | . . . Highest Temperature 349 | . 349 306 Average Temperature 95 | . 81 143 Received Heat Transfer 531 | . 456 75 Effects 1 | . 1 . Energy Bleed 1 | . 1 . Siege Activations . | . . . Martial Activations . | . . . Shielding Activations . | . . . Robots Disrupted . | . . . Combat Hostiles . | . . . Robots Corrupted . | . . . Combat Hostiles . | . . . Parts Fried . | . . . Impact Corruptions . | . . . Robots Melted . | . . . Combat Hostiles . | . . . Parts Melted 2 | . 1 1 Heat Transferred 1591 | . 1184 407 Parts Sabotaged . | . . . Parts Stolen . | . . . Parts Stripped . | . . . Power Chain Reactions . | . . . Alert | -11 -10 -10 ------- Run | Yrd Mat Min Maximum Alert Level . | . . . Low Security (%) 100 | . 100 100 Level 1 . | . . . Level 2 . | . . . Level 3 . | . . . Level 4 . | . . . Level 5 . | . . . High Security . | . . . Max Security . | . . . Peak Influence 131 | . 100 131 Initial 15 | . . 15 Average 38 | . 28 62 Influence Increases 545 | . 324 221 Destroy 0b10 Robot/C 360 | . 240 120 Destroy 0b10 Robot/NC 10 | . 10 . Destroy Leader 84 | . 54 30 Successful Hack 20 | . 20 . Destroy Structure 11 | . . 11 Lose Combat Pursuer 60 | . . 60 Influence Decreases 474 | . 285 189 Entered New Map 24 | . . 24 Time Decay 400 | . 255 145 Lost Part 50 | . 30 20 Squads Dispatched 2 | . 2 . Investigation 1 | . 1 . Extermination . | . . . Reinforcement 1 | . 1 . Assault . | . . . Garrison . | . . . Intercept . | . . . Searches Triggered . | . . . Construction Impeded . | . . . Haulers Reinforced . | . . . Active Scanning Responses . | . . . Cargo Convoy Interrupts . | . . . Stealth | -11 -10 -10 --------- Run | Yrd Mat Min Distress Signals 3 | . 3 . Communications Jammed . | . . . Distress Signals . | . . . Times Spotted 31 | . 21 10 Peak Tracking Total 6 | . 6 5 Tactical Retreats 2 | . . 2 Traps | -11 -10 -10 ------- Run | Yrd Mat Min Traps Triggered 1 | . 1 . Indirectly . | . . . Trap Hack Attempts . | . . . Triggered . | . . . Disarmed . | . . . Reprogrammed . | . . . Reused . | . . . Traps Extracted . | . . . Installed . | . . . Triggered . | . . . Machines | -11 -10 -10 ---------- Run | Yrd Mat Min Machines Disabled . | . . . Max in Single Turn . | . . . Machines Repaired . | . . . Machines Dismantled . | . . . Machines Sabotaged . | . . . Overloaded Fab Kills . | . . . Hacking | -11 -10 -10 --------- Run | Yrd Mat Min Machines Accessed 4 | . 3 1 Terminals 4 | . 3 1 Fabricators . | . . . Repair Stations . | . . . Recycling Units . | . . . Scanalyzers . | . . . Garrison Access . | . . . Total Hacks 15 | . 11 4 Successful 13 | . 11 2 Failed 2 | . . 2 Catastrophic . | . . . Database Lockouts . | . . . Manual 10 | . 7 3 Terminals 15 | . 11 4 Fabricators . | . . . Repair Stations . | . . . Recycling Units . | . . . Scanalyzers . | . . . Garrison Access . | . . . Terminal Hacks 6 | . 5 1 Robot Analysis 1 | . 1 . Alert Level 2 | . 1 1 Locate Traps 1 | . 1 . Transport Status 1 | . 1 . Zone Layout 1 | . 1 . Fabricator Hacks . | . . . Repair Station Hacks . | . . . Recycling Unit Hacks . | . . . Scanalyzer . | . . . Garrison Access Hacks . | . . . Unauthorized Hacks 7 | . 6 1 Terminals 7 | . 6 1 Track 4 | . 3 1 Botnet 3 | . 3 . Fabricators . | . . . Repair Stations . | . . . Recycling Units . | . . . Scanalyzers . | . . . Garrison Access . | . . . Data Cores Recovered . | . . . Used . | . . . Hacking Detections 4 | . 3 1 Full Trace Events . | . . . Feedback Events . | . . . Feedback Blocked . | . . . Robot Schematics Acquired . | . . . Robots Built . | . . . Authchips . | . . . Time . | . . . Total Robot Build Rating . | . . . Part Schematics Acquired . | . . . Parts Built . | . . . Authchips . | . . . Time . | . . . Total Part Build Rating . | . . . Part Studies Acquired . | . . . Parts Repaired . | . . . Time . | . . . Parts Recycled . | . . . Recycled Matter . | . . . Retrieved Matter . | . . . Retrieved Components . | . . . Parts Scanalyzed . | . . . Part Schematics Acquired . | . . . Parts Damaged . | . . . Bothacking | -11 -10 -10 ------------ Run | Yrd Mat Min Used RIF Installer . | . . . Robots Hacked . | . . . Non-combat . | . . . Combat . | . . . Robot Hacks Applied . | . . . Relay Couplers Released . | . . . Fabnet Peak Effective % . | . . . Robots Rewired . | . . . Allies Hacked . | . . . Hacks Repelled . | . . . Allies | -11 -10 -10 -------- Run | Yrd Mat Min Total Allies . | . . . Largest Group . | . . . Highest-Rated Group . | . . . Highest-Rated Ally . | . . . Total Orders . | . . . Ally Attacks . | . . . Total Damage . | . . . Kills . | . . . Allies Corrupted . | . . . Allies Melted . | . . . Intel | -11 -10 -10 ------- Run | Yrd Mat Min Active Infowar (turns) . | . . . Robot Analysis Total 1 | . 1 . Derelict Logs Recovered 1 | . . 1 Drone Launches . | . . . Drone Recoveries . | . . . Exploration | -11 -10 -10 ------------- Run | Yrd Mat Min Turns Passed 1107 | . 793 314 Spaces Moved 557 | 1 425 131 Core . | . . . Treads . | . . . Legs 557 | 1 425 131 Wheels . | . . . Hover . | . . . Flight . | . . . Fastest Speed 120 | 120 120 190 Average Speed 139 | 120 124 190 Slowest Speed 190 | 120 190 190 Overloaded Moves . | . . . Propulsion Burnouts . | . . . Robots Hopped . | . . . Potential Cave-ins . | . . . Cave-ins Triggered . | . . . Exploration Rate (%) 34 | 1 68 35 Regions Visited 2 Branch Regions 1 Pre-discovered Areas . | . . . Known Exits Taken . | . . . Unknown Exits Taken 2 | 1 1 . Scrap Searched . | . . . Spaces Dug . | . . . Terrain Destroyed 11 | . . 11 Melee . | . . . Projectile . | . . . AOE 11 | . . 11 Terrain Rammed . | . . . Walls Destroyed . | . . . Machines Disabled . | . . . Actions | -11 -10 -10 --------- Run | Yrd Mat Min Total 742 | . 574 168 Wait 55 | . 40 15 Move 555 | . 424 131 Hop . | . . . Pick Up 10 | . 9 1 Fast Attach 5 | . 4 1 Attach 5 | . 4 1 Detach 1 | . 1 . Swap 9 | . 6 3 Drop 14 | . 14 . Fire 87 | . 72 15 Melee . | . . . Ram . | . . . Kick 1 | . . 1 Crush . | . . . Escape Stasis . | . . . Rewire . | . . . Trap . | . . . Miscellaneous . | . . . Route ------- -11/Scrapyard -10/Materials (discovered 4 exits: [*Mat] / *Min x2 / [*Sub]) -10/Mines (discovered 1 exit: [*Sub]) History --------- Turn | Location | Event 1 | -11/Scrapyard | Discovered new exit (range 0) 1 | -11/Scrapyard | Entered Materials 298 | -10/Materials | Discovered new exit (range 15) 311 | -10/Materials | Build established: Mutant 388 | -10/Materials | Discovered new exit (range 7) 446 | -10/Materials | Discovered new exit (range 14) 641 | -10/Materials | Core integrity fell below 50% 670 | -10/Materials | Discovered new exit (range 9) 688 | -10/Materials | Core integrity fell below 20% 794 | -10/Materials | Entered Mines 1059 | -10/Mines | Discovered new exit (range 11) 1108 | -10/Mines | Destroyed by G-34 Mercenary with Small Laser Last Messages --------------- 00987_ S-10 Pest destroyed. 00988_ T-07 Excavator is excavating. 00990_ Acquired 1 matter. 00993_ Acquired Imp. Heat Sink. 00997_ Acquired Aluminum Leg. 01024_ Connecting with Terminal... 01024_ Current location identified: Mines >>Alert(Check) Current Alert Level: Low Security >>Trojan(Track) Trojan loaded successfully. Testing... Tracking enabled and active. 01036_ Kicked T-07 Excavator out of the way. 01040_ K-01 Serf collects debris. 01053_ Acquired 7 matter. 01059_ EXIT=FOUND 01060_ K-01 Serf collects debris. 01060_ U-05 Engineer builds a Wall. 01107_ G-34 Mercenary suffers critical hit (Burn). Map ----- +----------------------------------------------------+ | ???????????????# #????????# #??? | | ???????????????# #????????# #??? | | ????#??????????# #????????# #??? | | ???##<###??????# #????????# #??? | | ???# #####?# #???###### ## | | ????? + #?# #???# | | ??????? + #?# #???# ###### | | ?????????# ### #??## #?????? | | ?????????# ##%#?## ##??????? | | ?????????# %#?# #???????? | | ?????????## #####?# ##??????? | | ?????????## ##????# ##?????? | | ?????????# ###??## ##????? | | ?????????# ##??## ##???? | | ?????????## ##??# ##??? | | ??????????## #### ##?? | | ???????????# #?? | | ???????????# # #?? | | ??????????## ######## #?? | | ??????????# ##??????? #?? | | ??????????# ##??????? #?? | | ??????##### ##??????? ? | | ??????# #???????? ### | | ??????# g #?????????##?? | | ????### ### #????????????? | | ???# @#?## ##????????????? | | ???# #??### ##?????????????? | | ???# #####????####??????????????? | | ???# ???????????????????????????? | | ???#????????????????????????????? | | ????????????????????????????????? | | ????????????????????????????????? | | ????????????????????????????????? | | ????????????????????????????????? | | ????????????????????????????????? | | ????????????????????????????????? | | ????????????????????????????????? | | ????????????????????????????????? | | ????????????????????????????????? | | ????????????????????????????????? | | ????????????????????????????????? | | ????????????????????????????????? | | ????????????????????????????????? | | ????????????????????????????????? | | ????????????????????????????????? | | ????????????????????????????????? | | ????????????????????????????????? | | ????????????????????????????????? | | ????????????????????????????????? | | ????????????????????????????????? | +----------------------------------------------------+ Best States ------------- Heat Dissipation 39 Energy Generation 14 Energy Capacity 250 Matter Stores 300 Matter Capacity 300 Sight Range 16 Terrain Scan Density 10 Armor Coverage 150 Evasion (%) 55 Targeting Accuracy 5 Item Schematics ----------------- None Robot Schematics ------------------ None Fabricated ------------ Nothing Repaired ---------- Nothing Studied --------- None Alien Tech Used ----------------- None Achievements -------------- None Challenges ------------ None Game ------ Seed ScrapSlugDoomcannon Manual? 0 Play Time 00:15:32 Cumulative 99.8 hours Start 2026.03.28 @ 07:52:29 End 2026.03.28 @ 08:05:58 Sessions 1 Manual Loads 0 Difficulty Rogue Special Mode None Game No. 94 Rogue 49 Adventurer 45 Explorer 0 Win Type - Total 3 Types 2/0/0/1/0/0/0/0/0/0 Lore% 60 Gallery% 51 Achievement% 37 Wizard Run 0 Options --------- Layout 0 ASCII 0 Keyboard 1 Movement Numpad Keybinds 0 Fullscreen 1 Font 24/Smallcaps Map View 76x50 Zoom Use 0% Tactical HUD 1 Map Filters NONE Filters NONE Steam 1 RUN: 1223ebff-5a15-4ca9-b930-185818779bc2